bitfinex/quotes_BTCUSD_20250825
["timestamp","ask_amount","ask_price","bid_price","bid_amount"]
[1756112856240,0.76994043,111510.0,111500.0,5e-05]
[1756112856869,0.60598043,111510.0,111500.0,5e-05]
[1756112856995,0.76978043,111510.0,111500.0,5e-05]
[1756112858271,0.73020508,111510.0,111500.0,5e-05]
[1756112860653,0.17938828,111490.0,111470.0,0.87004704]
[1756112860894,0.17938828,111490.0,111480.0,0.00203]
[1756112861096,0.34446828,111490.0,111480.0,0.00203]
[1756112862786,0.34644828,111490.0,111480.0,0.00203]
[1756112862995,0.34446828,111490.0,111480.0,0.00203]
[1756112863450,0.34446828,111490.0,111480.0,0.00403]
[1756112864262,0.34446828,111490.0,111480.0,0.00603]
[1756112864471,0.273174,111500.0,111480.0,0.86231104]
[1756112864680,0.438894,111500.0,111490.0,0.00458235]
[1756112864883,0.438894,111500.0,111490.0,0.85831104]
[1756112865083,0.438894,111500.0,111490.0,0.00437]
[1756112865294,0.61826619,111500.0,111490.0,0.00203]
[1756112865505,0.62332619,111500.0,111490.0,0.00203]
[1756112866534,0.62134619,111500.0,111490.0,0.00203]
[1756112867153,0.17938828,111490.0,111470.0,0.87238704]
[1756112867359,0.17938828,111490.0,111480.0,0.00203]
[1756112868017,0.18444828,111490.0,111470.0,0.016106]
[1756112868195,0.19341769,111490.0,111460.0,0.1677]
[1756112868406,0.19341769,111490.0,111470.0,0.85394104]
[1756112868617,0.19341769,111490.0,111480.0,0.00203]
[1756112868820,0.19341769,111490.0,111460.0,0.00234]
[1756112869031,0.35677697,111480.0,111460.0,0.00234]
[1756112869234,0.35875697,111480.0,111470.0,0.00203]
[1756112869439,0.35875697,111480.0,111470.0,0.00403]
[1756112869650,0.35369697,111480.0,111470.0,0.00403]
[1756112869856,0.19143769,111490.0,111470.0,0.00403]
[1756112870063,0.17940676,111480.0,111470.0,0.00203]
[1756112870272,0.18646676,111480.0,111470.0,0.00203]
[1756112870475,0.18546676,111480.0,111470.0,0.00203]
[1756112870905,0.18040676,111480.0,111470.0,0.00603]
[1756112871252,0.19443697,111480.0,111470.0,0.00603]
[1756112871506,0.18937697,111480.0,111470.0,0.00603]
[1756112871712,0.19443697,111480.0,111470.0,0.00603]
[1756112871890,0.18937697,111480.0,111470.0,0.00603]
[1756112872302,0.18937697,111480.0,111470.0,0.00803]
[1756112872503,0.001,111480.0,111470.0,0.00803]
[1756112872700,0.001,111480.0,111470.0,0.86655379]
[1756112872883,0.001,111480.0,111470.0,0.00837]
[1756112873259,0.002,111480.0,111470.0,0.00903]
[1756112875273,0.002,111480.0,111470.0,0.01137]
[1756112875476,0.002,111480.0,111470.0,0.86526379]
[1756112875677,0.002,111480.0,111470.0,0.86536104]
[1756112875893,0.002,111480.0,111470.0,0.01142]
[1756112876098,0.002,111480.0,111470.0,0.0159055]
[1756112876300,0.002,111480.0,111470.0,0.86984654]
[1756112876506,0.002,111480.0,111470.0,0.86536104]
[1756112876942,0.002,111480.0,111470.0,0.01142]
[1756112877173,0.002,111480.0,111470.0,0.0159055]
[1756112877608,0.002,111480.0,111470.0,0.86984654]
[1756112877830,0.002,111480.0,111470.0,0.86536104]
[1756112878245,0.002,111480.0,111470.0,0.00908]
[1756112878458,0.002,111480.0,111470.0,0.01132275]
[1756112878660,0.002,111480.0,111470.0,0.86984654]
[1756112878894,0.002,111480.0,111470.0,0.86302104]
[1756112879100,0.002,111480.0,111470.0,0.01142]
[1756112879300,0.002,111480.0,111470.0,0.86984654]
[1756112879510,0.002,111480.0,111470.0,0.86536104]
[1756112879717,0.002,111480.0,111470.0,0.86302104]
[1756112880381,0.002,111480.0,111470.0,0.86536104]
[1756112880616,0.002,111480.0,111470.0,0.86302104]
[1756112880836,0.002,111480.0,111470.0,0.01142]
[1756112881048,0.002,111480.0,111470.0,0.0159055]
[1756112881975,0.002,111480.0,111470.0,0.86984654]
[1756112882193,0.002,111480.0,111470.0,0.86536104]
[1756112882836,0.002,111480.0,111470.0,1.71930208]
[1756112883057,0.002,111480.0,111470.0,2.05930208]
[1756112883266,0.002,111480.0,111470.0,1.20536104]
[1756112883686,0.002,111480.0,111470.0,0.35142]
[1756112883897,0.002,111480.0,111470.0,1.20536104]
[1756112887378,0.002,111480.0,111470.0,1.36936104]
[1756112887594,0.002,111480.0,111470.0,1.01794104]
[1756112887746,0.002,111480.0,111470.0,1.04490404]
[1756112889464,0.002,111480.0,111470.0,0.190963]
[1756112889599,0.002,111480.0,111470.0,1.04490404]
[1756112891200,0.002,111480.0,111470.0,0.88090404]
[1756112891410,0.002,111480.0,111470.0,0.88095404]
[1756112891617,0.00303,111490.0,111480.0,0.008]
[1756112892231,0.00519,111490.0,111480.0,0.17148]
[1756112892434,0.00303,111490.0,111480.0,0.17148]
[1756112892844,0.00303,111490.0,111480.0,1.02542104]
[1756112893053,0.00303,111490.0,111480.0,1.02642104]
[1756112894253,0.00303,111500.0,111480.0,1.02647104]
[1756112894456,0.00303,111500.0,111490.0,0.85105839]
[1756112894697,0.00519,111500.0,111490.0,0.85105839]
[1756112894908,0.00519,111500.0,111480.0,0.24153]
[1756112895115,0.00519,111500.0,111490.0,0.85730448]
[1756112895321,0.00519,111500.0,111490.0,0.85394104]
[1756112895505,0.00519,111500.0,111490.0,1.01706104]
[1756112896131,0.00619,111500.0,111490.0,0.16312]
[1756112896335,0.00619,111500.0,111490.0,1.01930339]
[1756112896542,0.00619,111500.0,111490.0,1.01706104]
[1756112896751,0.00303,111500.0,111490.0,1.01806104]
[1756112897191,0.00519,111500.0,111490.0,1.01906104]
[1756112897401,0.00519,111500.0,111490.0,0.16412]
[1756112897615,0.00519,111500.0,111490.0,1.02006104]
[1756112897825,0.00303,111500.0,111490.0,1.02006104]
[1756112898001,0.00303,111500.0,111490.0,1.02011104]
[1756112898614,0.00303,111510.0,111490.0,1.02011104]
[1756112898847,0.00303,111510.0,111500.0,0.85506182]
[1756112899063,0.00519,111510.0,111500.0,0.85394104]
[1756112900370,0.00619,111510.0,111500.0,0.85394104]
[1756112900760,0.00619,111510.0,111500.0,0.85494104]
[1756112901767,0.00403,111510.0,111500.0,0.85494104]
[1756112901988,0.00619,111510.0,111500.0,0.85494104]
[1756112902441,0.001,111510.0,111500.0,0.85494104]
[1756112902652,0.00619,111510.0,111500.0,0.85494104]
[1756112904462,0.18554611,111510.0,111500.0,0.001]
[1756112904655,0.18554611,111510.0,111500.0,0.16332]
[1756112905969,0.00619,111510.0,111500.0,0.16332]
[1756112906591,0.18554611,111510.0,111500.0,0.16332]
[1756112907462,0.00619,111510.0,111500.0,0.16332]
[1756112907855,0.18554611,111510.0,111500.0,0.16332]
[1756112908473,0.18554611,111510.0,111500.0,0.001]
[1756112908678,0.00619,111510.0,111500.0,0.001]
[1756112909081,0.18554611,111510.0,111500.0,0.001]
[1756112911783,0.68834611,111510.0,111500.0,0.001]
[1756112915260,0.68834611,111510.0,111500.0,0.00105]
[1756112916737,0.68802611,111510.0,111500.0,0.00105]
[1756112919178,0.52554611,111510.0,111500.0,0.00105]
[1756112919381,0.68778611,111510.0,111500.0,0.00105]
[1756112921449,0.70449461,111510.0,111500.0,0.00105]
[1756112924918,0.71852945,111510.0,111500.0,0.00105]
[1756112925739,1.15702945,111510.0,111500.0,0.00105]
[1756112925949,1.15654945,111510.0,111500.0,0.00105]
[1756112926591,1.15554945,111510.0,111500.0,5e-05]
[1756112926971,1.15854945,111510.0,111500.0,0.00105]
[1756112927166,1.15850945,111510.0,111500.0,0.00105]
[1756112927403,1.15842945,111510.0,111500.0,0.00105]
[1756112928064,1.14172095,111510.0,111500.0,0.00105]
[1756112928218,1.15840779,111510.0,111500.0,0.00105]
[1756112928402,0.99676779,111510.0,111500.0,0.00105]
[1756112928602,1.15840779,111510.0,111500.0,0.00105]
[1756112929053,1.15824779,111510.0,111500.0,0.00105]
[1756112929419,0.99676779,111510.0,111500.0,0.00105]
[1756112929551,1.15824779,111510.0,111500.0,0.00105]
[1756112930416,0.99676779,111510.0,111500.0,0.00105]
[1756112930588,1.15820779,111510.0,111500.0,0.00105]
[1756112931237,1.15808779,111510.0,111500.0,0.00105]
[1756112931670,1.18631045,111510.0,111500.0,0.00105]
[1756112934168,1.17227561,111510.0,111500.0,0.00105]
[1756112935880,1.17203561,111510.0,111500.0,0.00105]
[1756112937446,1.18607037,111510.0,111500.0,0.00105]
[1756112937875,1.16938353,111510.0,111500.0,0.00105]
[1756112938116,1.1860759,111510.0,111500.0,0.00105]
[1756112938814,1.18607731,111510.0,111500.0,0.00105]
[1756112940221,0.51937219,111500.0,111490.0,0.00805]
[1756112940480,0.70217597,111500.0,111490.0,0.00805]
[1756112941106,0.70205597,111500.0,111490.0,0.00805]
[1756112941526,0.70305597,111500.0,111490.0,0.00805]
[1756112941767,0.70305597,111500.0,111490.0,0.00905]
[1756112943225,0.54225597,111500.0,111490.0,0.0081833]
[1756112943445,0.70321597,111500.0,111490.0,0.0081833]
[1756112944065,0.54225597,111500.0,111490.0,0.0081833]
[1756112944277,0.70313597,111500.0,111490.0,0.0081833]
[1756112944888,0.54225597,111500.0,111490.0,0.0081833]
[1756112945154,0.71717108,111500.0,111490.0,0.0081833]
[1756112945952,0.55629108,111500.0,111490.0,0.0081833]
[1756112946202,0.71705108,111500.0,111490.0,0.0081833]
[1756112946670,0.71735358,111500.0,111490.0,0.0081833]
[1756112947097,0.71815291,111500.0,111490.0,0.0081833]
[1756112947529,0.71815533,111500.0,111490.0,0.0081833]
[1756112948380,0.717356,111500.0,111490.0,0.00738397]
[1756112953185,0.71737262,111500.0,111490.0,0.00738397]
[1756112954447,0.70333751,111500.0,111490.0,0.00738397]
[1756112955011,0.54229751,111500.0,111490.0,0.00738397]
[1756112955214,0.70289751,111500.0,111490.0,0.00738397]
[1756112956469,0.70289795,111500.0,111490.0,0.00738397]
[1756112957755,0.71693294,111500.0,111490.0,0.00738397]
[1756112962586,0.55633294,111500.0,111490.0,0.00738397]
[1756112962789,0.71669294,111500.0,111490.0,0.00738397]
[1756112965729,0.70265795,111500.0,111490.0,0.00738397]
[1756112966175,0.72194307,111500.0,111490.0,0.00738397]
[1756112966394,0.72194789,111500.0,111490.0,0.00738397]
[1756112967597,0.72150789,111500.0,111490.0,0.00738397]
[1756112968221,0.70222277,111500.0,111490.0,0.00738397]
[1756112968846,0.71625806,111500.0,111490.0,0.00738397]
[1756112969052,0.71701806,111500.0,111490.0,0.00738397]
[1756112969248,0.55633806,111500.0,111490.0,0.00738397]
[1756112969456,0.71697806,111500.0,111490.0,0.00738397]
[1756112971512,0.70294277,111500.0,111490.0,0.00738397]
[1756112974638,0.71697811,111500.0,111490.0,0.00738397]
[1756112976097,0.77915023,111500.0,111490.0,0.00738397]
[1756112976309,5.79659925,111500.0,111490.0,0.00738397]
[1756112976916,5.79659925,111500.0,111490.0,0.00638397]
[1756112977345,5.80059925,111500.0,111490.0,0.00738397]
[1756112978208,5.6640735,111500.0,111490.0,0.00738397]
[1756112978418,5.8249935,111500.0,111490.0,0.00738397]
[1756112978626,5.8239935,111500.0,111490.0,0.00738397]
[1756112979010,5.8259935,111500.0,111490.0,0.00738397]
[1756112979215,5.6650735,111500.0,111490.0,0.00738397]
[1756112979420,5.79776085,111500.0,111490.0,0.00738397]
[1756112980052,5.63684085,111500.0,111490.0,0.00738397]
[1756112980263,5.79776085,111500.0,111490.0,0.00738397]
[1756112980667,5.7736466,111500.0,111490.0,0.00738397]
[1756112980900,5.7737266,111500.0,111490.0,0.00738397]
[1756112981320,5.75627758,111500.0,111490.0,0.00738397]
[1756112981531,5.74224224,111500.0,111490.0,0.00738397]
[1756112982404,5.74220224,111500.0,111490.0,0.00738397]
[1756112984687,5.75623939,111500.0,111490.0,0.00738397]
[1756112985492,5.75619117,111500.0,111490.0,0.00738397]
[1756112985733,5.75619117,111500.0,111490.0,0.00743397]
[1756112985969,5.75612166,111500.0,111490.0,0.00743397]
[1756112986375,5.59516166,111500.0,111490.0,0.00743397]
[1756112986605,5.75680166,111500.0,111490.0,0.00743397]
[1756112987508,5.70680166,111500.0,111490.0,0.00743397]
[1756112989714,5.70041769,111500.0,111490.0,0.00105]
[1756112989917,5.69206602,111500.0,111490.0,0.00105]
[1756112990356,5.70041587,111500.0,111490.0,0.00105]
[1756112990566,5.69238602,111500.0,111490.0,0.00105]
[1756112992693,5.72060868,111500.0,111490.0,0.00105]
[1756112993088,5.72895931,111500.0,111490.0,0.00105]
[1756112993709,5.72999931,111500.0,111490.0,0.00105]
[1756112994898,5.56699931,111500.0,111490.0,0.00105]
[1756112995076,5.73003931,111500.0,111490.0,0.00105]
[1756112995287,5.56699931,111500.0,111490.0,0.00105]
[1756112995497,5.54403248,111500.0,111490.0,0.00105]
[1756112995709,5.72999742,111500.0,111490.0,0.00105]
[1756112996201,5.72999743,111500.0,111490.0,0.00105]
[1756113001261,5.73000035,111500.0,111490.0,0.00105]
[1756113003098,5.56700035,111500.0,111490.0,0.00105]
[1756113003318,0.24521384,111500.0,111490.0,0.00105]
[1756113003541,0.36834997,111500.0,111490.0,0.00105]
[1756113003773,0.17938828,111490.0,111480.0,0.00055]
[1756113003995,0.34206828,111490.0,111480.0,0.00055]
[1756113004211,0.68206828,111490.0,111480.0,0.00055]
[1756113004428,0.36903728,111490.0,111480.0,0.00055]
[1756113004669,0.70903728,111490.0,111480.0,0.00055]
[1756113004859,0.529649,111490.0,111480.0,0.00055]
[1756113005074,0.532849,111490.0,111480.0,0.00155]
[1756113005509,0.71223728,111490.0,111480.0,0.00155]
[1756113005952,0.71323728,111490.0,111480.0,0.00155]
[1756113006164,0.55035728,111490.0,111480.0,0.00155]
[1756113006372,0.71331728,111490.0,111480.0,0.00155]
[1756113006815,0.533929,111490.0,111480.0,0.00155]
[1756113007025,0.533889,111490.0,111480.0,0.00155]
[1756113007265,0.370969,111490.0,111480.0,0.00155]
[1756113007478,0.533969,111490.0,111480.0,0.00155]
[1756113008548,0.57475558,111490.0,111480.0,0.00155]
[1756113008768,0.030969,111490.0,111480.0,0.85549104]
[1756113009450,0.004,111490.0,111480.0,0.85549104]
[1756113009884,0.003,111490.0,111480.0,0.85549104]
[1756113010100,0.003,111490.0,111480.0,0.00155]
[1756113010310,0.599965,111510.0,111480.0,0.85449104]
[1756113010519,0.002,111490.0,111480.0,0.00455]
[1756113010730,0.002,111490.0,111480.0,0.85849104]
[1756113011428,0.002,111490.0,111480.0,0.00455]
[1756113011643,0.002,111490.0,111480.0,0.85849104]
[1756113011854,0.001,111490.0,111480.0,0.85549104]
[1756113012079,0.001,111490.0,111480.0,0.85649104]
[1756113012545,0.001,111490.0,111480.0,0.85549104]
[1756113012996,0.002,111490.0,111480.0,0.85849104]
[1756113013232,0.002,111490.0,111480.0,0.87684537]
[1756113013443,0.002,111490.0,111480.0,0.95849104]
[1756113013658,0.002,111490.0,111480.0,0.98545304]
[1756113014305,0.002,111490.0,111480.0,0.295152]
[1756113014513,0.002,111490.0,111480.0,1.14909304]
[1756113014720,0.002,111490.0,111480.0,1.16750138]
[1756113015396,0.002,111490.0,111480.0,1.00386138]
[1756113015602,0.002,111490.0,111480.0,1.16734138]
[1756113015992,0.002,111490.0,111480.0,1.16730138]
[1756113017415,0.002,111490.0,111480.0,1.14885304]
[1756113018227,0.002,111490.0,111480.0,0.294912]
[1756113018428,0.002,111490.0,111480.0,1.14885304]
[1756113019301,0.002,111490.0,111480.0,0.294912]
[1756113019671,0.002,111490.0,111480.0,1.14885304]
[1756113020481,0.002,111490.0,111480.0,1.16729832]
[1756113021076,0.002,111490.0,111480.0,0.31335728]
[1756113021296,0.002,111490.0,111480.0,1.16729832]
[1756113022392,0.002,111490.0,111480.0,1.14837304]
[1756113024977,0.00727,111490.0,111480.0,0.031512]
[1756113025190,0.00727,111490.0,111480.0,0.00455]
[1756113025400,0.02518492,111490.0,111480.0,0.00455]
[1756113025629,0.00727,111490.0,111480.0,0.00455]
[1756113029577,0.02371942,111490.0,111480.0,0.00455]
[1756113036338,0.0293252,111490.0,111480.0,0.00455]
[1756113040604,0.0562942,111490.0,111480.0,0.00455]
[1756113042590,0.05068842,111490.0,111480.0,0.00455]
[1756113042740,0.02371942,111490.0,111480.0,0.00455]
[1756113043749,0.05068742,111490.0,111480.0,0.00455]
[1756113045665,0.02167942,111490.0,111480.0,0.85849104]
[1756113046133,0.02363942,111490.0,111480.0,0.85849104]
[1756113046590,0.02363942,111490.0,111480.0,0.00455]
[1756113047231,0.02363942,111490.0,111480.0,0.85849104]
[1756113047232,0.002,111490.0,111480.0,0.85849104]
[1756113047884,0.002,111490.0,111480.0,0.00455]
[1756113048092,0.002,111490.0,111480.0,0.85849104]
[1756113051676,0.002,111490.0,111480.0,1.71243208]
[1756113051892,0.002,111490.0,111480.0,0.85849104]
[1756113052292,0.002,111490.0,111480.0,0.00455]
[1756113052499,0.002,111490.0,111480.0,0.85849104]
[1756113052918,0.002,111490.0,111480.0,0.00455]
[1756113053122,0.002,111490.0,111480.0,0.85849104]
[1756113053814,0.002,111490.0,111480.0,0.00455]
[1756113054020,0.002,111490.0,111480.0,0.85849104]
[1756113055687,0.002,111490.0,111480.0,0.00455]
[1756113055914,0.002,111490.0,111480.0,0.85849104]
[1756113056123,0.002,111490.0,111480.0,0.00455]
[1756113056333,0.002,111490.0,111480.0,1.01941104]
[1756113056782,0.002,111490.0,111480.0,0.16547]
[1756113056987,0.00499,111490.0,111480.0,1.01941104]
[1756113057213,0.00499,111490.0,111480.0,0.16547]
[1756113057400,0.00499,111490.0,111480.0,1.01937104]
[1756113058032,0.00499,111490.0,111480.0,0.00455]
[1756113058217,0.00499,111490.0,111480.0,1.01933104]
[1756113059580,0.002,111490.0,111480.0,1.01933104]
[1756113060681,0.002,111490.0,111480.0,1.87327208]
[1756113060889,0.002,111490.0,111480.0,1.01933104]
[1756113061104,0.002,111490.0,111480.0,1.87327208]
[1756113061527,0.002,111490.0,111480.0,1.88924408]
[1756113061752,0.00499,111490.0,111480.0,1.03530304]
[1756113061972,0.002,111490.0,111480.0,1.03530304]
[1756113062186,0.00695,111490.0,111480.0,0.181162]
[1756113062402,0.00695,111490.0,111480.0,1.03510304]
[1756113063507,0.00695,111490.0,111480.0,0.00455]
[1756113063724,0.00695,111490.0,111480.0,0.16507]
[1756113063948,0.00695,111490.0,111480.0,0.00455]
[1756113064161,0.00695,111490.0,111480.0,0.16511]
[1756113065844,0.00695,111490.0,111480.0,0.16507]
[1756113066291,0.00695,111490.0,111480.0,1.01901104]
[1756113067792,0.00695,111490.0,111480.0,0.16507]
[1756113067998,0.00695,111490.0,111480.0,1.01901104]
[1756113075094,0.002,111490.0,111480.0,1.87295208]
[1756113075515,0.002,111490.0,111480.0,1.01901104]
[1756113075960,0.002,111490.0,111480.0,0.16507]
[1756113076170,0.001,111490.0,111480.0,1.01601104]
[1756113076379,0.001,111490.0,111480.0,1.01801104]
[1756113076796,0.001,111490.0,111480.0,1.01501104]
[1756113077048,0.00322,111500.0,111480.0,1.01501104]
[1756113077287,0.00322,111500.0,111480.0,0.16207]
[1756113077504,0.00322,111500.0,111480.0,0.16107]
[1756113077721,0.00322,111500.0,111490.0,0.85394104]
[1756113077925,0.00533,111500.0,111490.0,0.15972]
[1756113078654,0.00533,111500.0,111490.0,1.01366104]
[1756113079972,0.00533,111500.0,111490.0,1.01566104]
[1756113080222,0.00533,111500.0,111490.0,1.01666104]
[1756113081348,0.00533,111500.0,111490.0,0.16272]
[1756113081702,0.00533,111500.0,111490.0,1.01666104]
[1756113082421,0.00533,111500.0,111490.0,0.85694104]
[1756113082625,0.00533,111500.0,111490.0,1.01638104]
[1756113083385,0.18389788,111520.0,111490.0,1.01638104]
[1756113083601,0.00211,111500.0,111490.0,1.01846104]
[1756113084611,0.04892498,111520.0,111490.0,0.16452]
[1756113084810,0.00211,111500.0,111490.0,0.16452]
[1756113085039,0.03256636,111520.0,111490.0,1.01646104]
[1756113085492,0.00322,111510.0,111490.0,1.01646104]
[1756113086535,0.030182,111520.0,111500.0,0.85714104]
[1756113086753,0.00533,111520.0,111510.0,1.01546104]
[1756113086923,0.00533,111520.0,111510.0,0.16152]
[1756113087128,0.00533,111520.0,111510.0,0.15944]
[1756113087335,0.00833,111520.0,111510.0,0.15944]
[1756113087534,0.00533,111520.0,111510.0,0.15944]
[1756113087969,0.00833,111520.0,111510.0,0.16044]
[1756113088194,0.00533,111520.0,111510.0,0.15944]
[1756113088622,0.00533,111520.0,111510.0,0.16044]
[1756113089850,0.00533,111520.0,111510.0,0.16244]
[1756113090458,0.00533,111520.0,111510.0,0.16212]
[1756113092169,0.00533,111520.0,111510.0,0.1642]
[1756113092381,0.06483169,111530.0,111510.0,0.1642]
[1756113092596,0.0648798,111530.0,111510.0,0.00508]
[1756113092805,0.00533,111520.0,111510.0,0.00508]
[1756113093638,0.00533,111520.0,111510.0,0.00408]
[1756113094945,0.00533,111520.0,111500.0,0.15904]
[1756113095156,0.00533,111520.0,111510.0,0.00208]
[1756113095333,0.00533,111520.0,111510.0,0.00308]
[1756113095735,0.00533,111520.0,111510.0,0.00208]
[1756113096143,0.00533,111520.0,111510.0,0.00408]
[1756113098412,0.5440829,111530.0,111510.0,0.00408]
[1756113098826,0.00211,111520.0,111510.0,0.00408]
[1756113099033,0.00533,111520.0,111510.0,0.00408]
[1756113099268,0.00533,111520.0,111510.0,0.00208]
[1756113099693,0.00533,111520.0,111510.0,0.00308]
[1756113100119,0.00533,111520.0,111510.0,0.00208]
[1756113100330,0.00533,111520.0,111500.0,1.01618104]
[1756113100539,0.00533,111520.0,111510.0,0.00205]
[1756113100969,0.00533,111520.0,111510.0,0.00104277]
[1756113101169,0.00533,111520.0,111510.0,0.00096445]
[1756113101616,0.00533,111520.0,111510.0,0.00296445]
[1756113103079,0.00533,111520.0,111510.0,0.00405]
[1756113104137,0.00533,111520.0,111510.0,0.002]
[1756113108037,0.00533,111520.0,111510.0,0.00405]
[1756113111541,0.00533,111520.0,111500.0,0.92487104]
[1756113112029,0.00533,111520.0,111500.0,0.15844]
[1756113112240,0.00533,111520.0,111500.0,1.01238104]
[1756113112559,0.00533,111520.0,111500.0,0.15844]
[1756113114211,0.00533,111520.0,111500.0,1.01238104]
[1756113114466,0.00533,111520.0,111500.0,1.01338104]
[1756113115382,0.00533,111520.0,111500.0,0.15944]
[1756113115602,0.00533,111520.0,111500.0,1.01338104]
[1756113116022,0.00533,111520.0,111500.0,0.001]
[1756113116190,0.00312,111510.0,111500.0,0.15944]
[1756113116400,0.00312,111510.0,111500.0,0.15971]
[1756113117014,0.00312,111510.0,111500.0,0.00127]
[1756113117294,0.00528,111510.0,111500.0,0.1594]
[1756113117465,0.00528,111510.0,111500.0,0.001]
[1756113117703,0.00528,111510.0,111490.0,0.15932]
[1756113117910,0.00628,111510.0,111500.0,0.004]
[1756113118060,0.00316,111510.0,111500.0,0.004]
[1756113118393,0.70887911,111510.0,111500.0,0.004]
[1756113118598,0.71996691,111510.0,111480.0,0.22895]
[1756113118809,0.00312,111500.0,111480.0,0.22891]
[1756113119030,0.00216,111490.0,111480.0,0.22891]
[1756113119233,0.00528,111490.0,111480.0,0.22891]
[1756113119621,0.00528,111490.0,111480.0,0.00055]
[1756113119837,0.50456,111490.0,111480.0,0.00055]
[1756113119998,0.34528,111490.0,111480.0,0.00055]
[1756113120200,0.34528,111490.0,111480.0,0.00069401]
[1756113121458,0.00312,111490.0,111480.0,0.85490505]
[1756113121656,0.002,111490.0,111480.0,0.16156401]
[1756113122234,0.00728,111490.0,111480.0,0.00096401]
[1756113122437,0.01288578,111490.0,111480.0,0.00069401]
[1756113122642,0.01288578,111490.0,111480.0,0.00169401]
[1756113123050,0.00512,111490.0,111480.0,0.00196401]
[1756113123451,0.00728,111490.0,111480.0,0.00196401]
[1756113123674,0.00728,111490.0,111480.0,0.00169401]
[1756113127549,0.002,111490.0,111480.0,1.01526505]
[1756113127770,0.028965,111490.0,111480.0,1.01543505]
[1756113127964,0.002,111490.0,111480.0,1.01526505]
[1756113128812,0.00728,111490.0,111480.0,0.16032401]
[1756113129027,0.00312,111490.0,111480.0,0.16332401]
[1756113129206,0.001,111490.0,111480.0,0.16332401]
[1756113129562,0.00601,111490.0,111480.0,0.16332401]
[1756113129789,0.00601,111490.0,111480.0,0.16305401]
[1756113130112,0.00601,111490.0,111480.0,0.00369401]
[1756113130325,0.00701,111490.0,111480.0,0.16609401]
[1756113131316,0.00701,111490.0,111480.0,0.00669401]
[1756113131727,0.00701,111490.0,111480.0,0.16601401]
[1756113132163,0.00701,111490.0,111480.0,1.02022505]
[1756113132164,0.002,111490.0,111480.0,1.02022505]
[1756113132388,0.002,111490.0,111480.0,1.02039505]
[1756113132581,0.002,111490.0,111480.0,1.02022505]
[1756113133000,0.002,111490.0,111480.0,1.02039505]
[1756113133868,0.002,111490.0,111480.0,1.03443005]
[1756113134086,0.002,111490.0,111480.0,0.18019901]
[1756113134087,0.00701,111490.0,111480.0,0.18019901]
[1756113134717,0.00502,111490.0,111480.0,0.18019901]
[1756113134938,0.002,111490.0,111480.0,0.18019901]
[1756113135982,0.002,111490.0,111480.0,1.03414005]
[1756113136426,0.002,111490.0,111480.0,0.18019901]
[1756113136653,0.002,111490.0,111480.0,1.03414005]
[1756113138846,0.002,111490.0,111480.0,0.18019901]
[1756113139205,0.002,111490.0,111480.0,1.03414005]
[1756113141192,0.002,111490.0,111480.0,1.98825109]
[1756113141394,0.002,111490.0,111480.0,1.13431005]
[1756113141818,0.002,111490.0,111480.0,1.13414005]
[1756113142606,0.002,111490.0,111480.0,0.97494005]
[1756113142823,0.002,111490.0,111480.0,1.13382005]
[1756113144589,0.002,111490.0,111480.0,1.12486005]
[1756113145758,0.002,111490.0,111480.0,0.96598005]
[1756113145959,0.002,111490.0,111480.0,1.12474005]
[1756113146579,0.002,111490.0,111480.0,1.12462005]
[1756113151225,0.002,111490.0,111480.0,2.31856109]
[1756113151718,0.026958,111530.0,111490.0,0.18834424]
[1756113151965,0.02402301,111570.0,111520.0,1.98722104]
[1756113151966,0.5,111560.0,111520.0,1.98722104]
[1756113152184,0.00560186,111570.0,111530.0,0.16896]
[1756113152185,0.02695,111570.0,111530.0,0.16896]
[1756113152405,0.02695,111570.0,111540.0,0.15848]
[1756113152628,0.00199,111550.0,111530.0,0.095907]
[1756113152842,0.00199,111550.0,111530.0,0.15848]
[1756113153055,0.00302,111540.0,111520.0,0.02695]
[1756113153484,0.00302,111540.0,111530.0,0.15848]
[1756113153684,0.00501,111540.0,111530.0,0.15848]
[1756113153922,0.00501,111540.0,111520.0,0.02695]
[1756113154137,0.00302,111530.0,111510.0,0.06896]
[1756113154348,0.00199,111520.0,111510.0,0.06896]
[1756113154630,0.00199,111520.0,111510.0,0.15848]
[1756113154854,0.00501,111520.0,111510.0,0.15848]
[1756113155058,0.00501,111520.0,111500.0,0.026955]
[1756113155274,0.00199,111520.0,111510.0,0.15848]
[1756113155679,0.00199,111520.0,111510.0,0.15948]
[1756113155893,0.00501,111520.0,111510.0,0.15948]
[1756113156101,0.00501,111520.0,111510.0,0.001]
[1756113156320,0.00501,111520.0,111510.0,0.15948]
[1756113157106,0.00601,111520.0,111510.0,0.15848]
[1756113157303,0.00601,111520.0,111510.0,0.15948]
[1756113157473,0.00501,111520.0,111510.0,0.15948]
[1756113157684,0.00501,111520.0,111510.0,0.16048]
[1756113157890,0.00501,111520.0,111510.0,0.15948]
[1756113158202,0.00501,111520.0,111510.0,0.16048]
[1756113158399,0.00560386,111530.0,111510.0,0.16048]
[1756113158609,0.00314951,111550.0,111520.0,0.90363423]
[1756113158831,0.00012951,111550.0,111540.0,0.83467423]
[1756113159081,0.00012951,111550.0,111530.0,0.83467423]
[1756113159082,0.00211951,111550.0,111530.0,0.83467423]
[1756113159292,0.00513951,111550.0,111540.0,0.15848]
[1756113159889,0.00813951,111550.0,111540.0,0.15848]
[1756113160352,0.00513951,111550.0,111540.0,0.15848]
[1756113160569,0.00513951,111550.0,111540.0,0.001]
[1756113160570,0.01013951,111550.0,111540.0,0.001]
[1756113160781,0.01574237,111550.0,111540.0,0.001]
[1756113161232,0.01274237,111550.0,111540.0,0.001]
[1756113161637,0.01374237,111550.0,111540.0,0.001]
[1756113162754,0.00813951,111550.0,111540.0,0.001]
[1756113162956,0.03509351,111550.0,111540.0,0.001]
[1756113165010,0.37509351,111550.0,111540.0,0.001]
[1756113165829,0.34813951,111550.0,111540.0,0.001]